{"text_format":"3","workbook":"xlsx","n_sheets":2,"sheets":["Formularz oferty","Zestawienie kosztów"],"not_rendered":{"charts":1,"images":2,"defined_names":4},"read":"whole","date_system":"1900"}

{"sheet":"Formularz oferty","index":0,"n_rows":48,"n_cols":7,"rows_kept":48,"merged":[[15,1,25,5],[29,1,31,5],[35,1,37,5],[43,1,45,5]]}
[]
[null,"FORMULARZ OFERTY ROBÓT BUDOWLANYCH",{"$nulls":4}," "]
[]
[]
[null,"INFORMACJE O WŁAŚCICIELU",null,null,"INFORMACJE O WYKONAWCY"]
[null,"Imię i nazwisko","Tomasz Bator",null,"Firma","Fabrikam"]
[null,"Adres","Główna 72",null,"Imię i nazwisko","Michał Chmiela"]
[null,"Kod pocztowy, miasto","Szczecin, 12-345",null,"Adres","Południowa 321"]
[null,"Telefon",8885550111,null,"Kod pocztowy, miasto","Szczecin, 12-345"]
[null,"Adres e-mail","tomasz@proseware.com",null,"Telefon",8885550123]
[{"$nulls":4},"Adres e-mail","michal@fabrikam.com"]
[null,"Nazwa projektu","Schody do firmy",null,"Data wykonania","2013-07-14"]
[]
[null,"ZAKRES PRAC"]
[]
[null,"Tutaj należy umieścić zakres prac. Wpisz wszystkie odpowiednie szczegóły. To jest przykładowy projekt prac nad dużą klatką schodową. W szkielecie zostaną użyte tylko deski 38x89 mm i 28x184 mm, a także podpory. Schody zostaną wycięte z desek 38x89 mm. Zostaną przymocowane śrubami o rozmiarze 5 cm. Użyte gwoździe będą miały długość co najmniej 75 mm. Wytrzymałość stopnia konstrukcji musi wynosić co najmniej 250 kg. Stopnie zostaną wypoziomowane do podłogi. Stopnie zostaną przymocowane do ścian. Wykonawca posprząta po zakończeniu prac."]
{"$rows_empty":11}
[null,"POZA ZAKRESEM"]
[]
[null,"Nie zostanie zainstalowana poręcz. Właściciel przygotuje podłoże. Schody do pomalowania przez właściciela."]
[]
[]
[]
[null,"PROPOZYCJA FIRMY"]
[]
[null,"Firma Fabrikam proponuje, aby opisany powyżej zakres prac został wykonany do 14 lipca 2011 roku za opłatą 476,43 zł."]
[]
[]
[]
[null,"Przesłane przez: (przedstawiciel firmy)",{"$nulls":3},"Data"]
[]
[null,"ZGODA WŁAŚCICIELA"]
[]
[null,"Ja, Tomasz Bator, zgadzam się na opisany powyżej zakres prac i propozycję wykonania do 14 lipca 2011 roku za opłatą 476,43 zł."]
[]
[]
[]
[null,"Przesłane przez: (właściciel domu lub upoważniony przedstawiciel)",{"$nulls":3},"Data"]

{"sheet":"Zestawienie kosztów","index":1,"n_rows":47,"n_cols":6,"rows_kept":47,"merged":[[42,3,42,4],[43,3,43,4],[44,3,44,4],[45,3,45,4],[46,3,46,4],[47,3,47,4],[48,3,48,4],[49,3,49,4]]}
[]
[null,"PODSUMOWANIE KOSZTÓW OFERTY",{"$nulls":3}," "]
[]
[]
[null,"LISTA MATERIAŁÓW I KOSZTÓW"]
[]
[null,"Ilość","Opis","Koszt","Suma"," "]
[null,5,"Deski (38x184x250)",{"v":6.75,"d":"6.75 zł"},{"$f":"Elementy_oferty[Koszt]*Elementy_oferty[Ilość]","v":{"v":33.75,"d":"33.75 zł"}},{"$f":"_xlfn.RANK.EQ(Elementy_oferty[[#This Row],[Suma]],Elementy_oferty[Suma])","v":4}]
[null,20,"Deski (38x89x250)",{"v":4.97,"d":"4.97 zł"},{"$f":"Elementy_oferty[Koszt]*Elementy_oferty[Ilość]","v":{"v":99.39999999999999,"d":"99.40 zł"}},{"$f":"_xlfn.RANK.EQ(Elementy_oferty[[#This Row],[Suma]],Elementy_oferty[Suma])","v":2}]
[null,30,"Podpory",{"v":2.49,"d":"2.49 zł"},{"$f":"Elementy_oferty[Koszt]*Elementy_oferty[Ilość]","v":{"v":74.7,"d":"74.70 zł"}},{"$f":"_xlfn.RANK.EQ(Elementy_oferty[[#This Row],[Suma]],Elementy_oferty[Suma])","v":3}]
[null,2,"Pudełko śrubek (5 cm)",{"v":6.67,"d":"6.67 zł"},{"$f":"Elementy_oferty[Koszt]*Elementy_oferty[Ilość]","v":{"v":13.34,"d":"13.34 zł"}},{"$f":"_xlfn.RANK.EQ(Elementy_oferty[[#This Row],[Suma]],Elementy_oferty[Suma])","v":6}]
[null,2,"Pudełko gwoździ (7,5 cm)",{"v":3.25,"d":"3.25 zł"},{"$f":"Elementy_oferty[Koszt]*Elementy_oferty[Ilość]","v":{"v":6.5,"d":"6.50 zł"}},{"$f":"_xlfn.RANK.EQ(Elementy_oferty[[#This Row],[Suma]],Elementy_oferty[Suma])","v":7}]
[null,2,"Rękawiczki skórzane",{"v":7.75,"d":"7.75 zł"},{"$f":"Elementy_oferty[Koszt]*Elementy_oferty[Ilość]","v":{"v":15.5,"d":"15.50 zł"}},{"$f":"_xlfn.RANK.EQ(Elementy_oferty[[#This Row],[Suma]],Elementy_oferty[Suma])","v":5}]
[null,2,"Koszty pracy",{"v":100,"d":"100.00 zł"},{"$f":"Elementy_oferty[Koszt]*Elementy_oferty[Ilość]","v":{"v":200,"d":"200.00 zł"}},{"$f":"_xlfn.RANK.EQ(Elementy_oferty[[#This Row],[Suma]],Elementy_oferty[Suma])","v":1}]
[{"$nulls":4},{"$f":"Elementy_oferty[Koszt]*Elementy_oferty[Ilość]","v":0},{"$f":"_xlfn.RANK.EQ(Elementy_oferty[[#This Row],[Suma]],Elementy_oferty[Suma])","v":8}]
[{"$nulls":4},{"$f":"Elementy_oferty[Koszt]*Elementy_oferty[Ilość]","v":0},{"$f":"_xlfn.RANK.EQ(Elementy_oferty[[#This Row],[Suma]],Elementy_oferty[Suma])","v":8}]
[{"$nulls":4},{"$f":"Elementy_oferty[Koszt]*Elementy_oferty[Ilość]","v":0},{"$f":"_xlfn.RANK.EQ(Elementy_oferty[[#This Row],[Suma]],Elementy_oferty[Suma])","v":8}]
[{"$nulls":4},{"$f":"Elementy_oferty[Koszt]*Elementy_oferty[Ilość]","v":0},{"$f":"_xlfn.RANK.EQ(Elementy_oferty[[#This Row],[Suma]],Elementy_oferty[Suma])","v":8}]
[{"$nulls":4},{"$f":"Elementy_oferty[Koszt]*Elementy_oferty[Ilość]","v":0},{"$f":"_xlfn.RANK.EQ(Elementy_oferty[[#This Row],[Suma]],Elementy_oferty[Suma])","v":8}]
[{"$nulls":4},{"$f":"Elementy_oferty[Koszt]*Elementy_oferty[Ilość]","v":0},{"$f":"_xlfn.RANK.EQ(Elementy_oferty[[#This Row],[Suma]],Elementy_oferty[Suma])","v":8}]
[{"$nulls":4},{"$f":"Elementy_oferty[Koszt]*Elementy_oferty[Ilość]","v":0},{"$f":"_xlfn.RANK.EQ(Elementy_oferty[[#This Row],[Suma]],Elementy_oferty[Suma])","v":8}]
[{"$nulls":4},{"$f":"Elementy_oferty[Koszt]*Elementy_oferty[Ilość]","v":0},{"$f":"_xlfn.RANK.EQ(Elementy_oferty[[#This Row],[Suma]],Elementy_oferty[Suma])","v":8}]
[{"$nulls":4},{"$f":"Elementy_oferty[Koszt]*Elementy_oferty[Ilość]","v":0},{"$f":"_xlfn.RANK.EQ(Elementy_oferty[[#This Row],[Suma]],Elementy_oferty[Suma])","v":8}]
[{"$nulls":4},{"$f":"Elementy_oferty[Koszt]*Elementy_oferty[Ilość]","v":0},{"$f":"_xlfn.RANK.EQ(Elementy_oferty[[#This Row],[Suma]],Elementy_oferty[Suma])","v":8}]
[{"$nulls":4},{"$f":"Elementy_oferty[Koszt]*Elementy_oferty[Ilość]","v":0},{"$f":"_xlfn.RANK.EQ(Elementy_oferty[[#This Row],[Suma]],Elementy_oferty[Suma])","v":8}]
[{"$nulls":4},{"$f":"Elementy_oferty[Koszt]*Elementy_oferty[Ilość]","v":0},{"$f":"_xlfn.RANK.EQ(Elementy_oferty[[#This Row],[Suma]],Elementy_oferty[Suma])","v":8}]
[{"$nulls":4},{"$f":"Elementy_oferty[Koszt]*Elementy_oferty[Ilość]","v":0},{"$f":"_xlfn.RANK.EQ(Elementy_oferty[[#This Row],[Suma]],Elementy_oferty[Suma])","v":8}]
[{"$nulls":4},{"$f":"Elementy_oferty[Koszt]*Elementy_oferty[Ilość]","v":0},{"$f":"_xlfn.RANK.EQ(Elementy_oferty[[#This Row],[Suma]],Elementy_oferty[Suma])","v":8}]
[{"$nulls":4},{"$f":"Elementy_oferty[Koszt]*Elementy_oferty[Ilość]","v":0},{"$f":"_xlfn.RANK.EQ(Elementy_oferty[[#This Row],[Suma]],Elementy_oferty[Suma])","v":8}]
[{"$nulls":4},{"$f":"Elementy_oferty[Koszt]*Elementy_oferty[Ilość]","v":0},{"$f":"_xlfn.RANK.EQ(Elementy_oferty[[#This Row],[Suma]],Elementy_oferty[Suma])","v":8}]
[1,{"$nulls":3},{"$f":"Elementy_oferty[Koszt]*Elementy_oferty[Ilość]","v":0},{"$f":"_xlfn.RANK.EQ(Elementy_oferty[[#This Row],[Suma]],Elementy_oferty[Suma])","v":8}]
[2,null,null,"Suma częściowa",{"$f":"SUBTOTAL(109,Elementy_oferty[Suma])","v":{"v":443.18999999999994,"d":"443.19 zł"}},{"$f":"SUBTOTAL(109,Elementy_oferty[[ ]])","v":164}]
[3,null,null,"Stawka podatkowa",{"v":0.075,"d":"7.50%"}]
[4,null,null,"Podatek",{"$f":"Stawka_podatkowa*Elementy_oferty[[#Totals],[Suma]]","v":{"v":33.23924999999999,"d":"33.24 zł"}}]
[5,null,null,"Suma końcowa",{"$f":"Podatek+Elementy_oferty[[#Totals],[Suma]]","v":{"v":476.4292499999999,"d":"476.43 zł"}}]
[]
[]
[]
[null,"ZESTAWIENIE MATERIAŁÓW I KOSZTÓW"]
[]
[]
[null,null,"SUMA","UWAGI"]
[null,{"$f":"INDEX(Elementy_oferty[],MATCH(A31,Elementy_oferty[[ ]],0),2)","v":"Koszty pracy"},{"$f":"INDEX(Elementy_oferty[],MATCH(A31,Elementy_oferty[[ ]],0),4)","v":{"v":200,"d":"$200.00"}}]
[null,{"$f":"INDEX(Elementy_oferty[],MATCH(A32,Elementy_oferty[[ ]],0),2)","v":"Deski (38x89x250)"},{"$f":"INDEX(Elementy_oferty[],MATCH(A32,Elementy_oferty[[ ]],0),4)","v":{"v":99.39999999999999,"d":"$99.40"}}]
[null,{"$f":"INDEX(Elementy_oferty[],MATCH(A33,Elementy_oferty[[ ]],0),2)","v":"Podpory"},{"$f":"INDEX(Elementy_oferty[],MATCH(A33,Elementy_oferty[[ ]],0),4)","v":{"v":74.7,"d":"$74.70"}}]
[null,{"$f":"INDEX(Elementy_oferty[],MATCH(A34,Elementy_oferty[[ ]],0),2)","v":"Deski (38x184x250)"},{"$f":"INDEX(Elementy_oferty[],MATCH(A34,Elementy_oferty[[ ]],0),4)","v":{"v":33.75,"d":"$33.75"}}]
[null,{"$f":"INDEX(Elementy_oferty[],MATCH(A35,Elementy_oferty[[ ]],0),2)","v":"Rękawiczki skórzane"},{"$f":"INDEX(Elementy_oferty[],MATCH(A35,Elementy_oferty[[ ]],0),4)","v":{"v":15.5,"d":"$15.50"}}]